[Event "Live Chess"]
[Site "Chess.com"]
[Date "2024.06.01"]
[Round "-"]
[White "PaulHumphreys"]
[Black "jimwad"]
[Result "0-1"]
[WhiteElo "1393"]
[BlackElo "1264"]
[TimeControl "300"]
[EndTime "12:45:50 PDT"]
[Termination "jimwad won by resignation"]

1. d4 {[%clk 0:04:58]} 1... d5 {[%clk 0:04:58.3]} 2. Nc3 {[%clk 0:04:57.9]} 2...
Nf6 {[%clk 0:04:56.8]} 3. Bf4 {[%clk 0:04:57.8]} 3... Bf5 {[%clk 0:04:54.5]} 4.
Nb5 {[%clk 0:04:56.5]} 4... Na6 {[%clk 0:04:45.6]} 5. e3 {[%clk 0:04:55]} 5...
c6 {[%clk 0:04:41]} 6. Nc3 {[%clk 0:04:54]} 6... e6 {[%clk 0:04:39.1]} 7. Bxa6
{[%clk 0:04:52.2]} 7... bxa6 {[%clk 0:04:37.8]} 8. Nf3 {[%clk 0:04:52.1]} 8...
Bb4 {[%clk 0:04:35.4]} 9. a3 {[%clk 0:04:47.1]} 9... Bxc3+ {[%clk 0:04:34.1]}
10. bxc3 {[%clk 0:04:46.8]} 10... O-O {[%clk 0:04:33.2]} 11. Rb1 {[%clk
0:04:44.9]} 11... Qa5 {[%clk 0:04:23.8]} 12. O-O {[%clk 0:04:38.5]} 12... Qxc3
{[%clk 0:04:21.8]} 13. Rb7 {[%clk 0:04:38]} 13... Bxc2 {[%clk 0:04:08.1]} 14.
Qc1 {[%clk 0:04:35.2]} 14... Ne4 {[%clk 0:03:56.4]} 15. Ne5 {[%clk 0:04:07.8]}
15... Bd3 {[%clk 0:03:49.7]} 16. Nxd3 {[%clk 0:04:00]} 16... Qxd3 {[%clk
0:03:46.2]} 17. Qxc6 {[%clk 0:03:56.6]} 17... Qxa3 {[%clk 0:03:39.1]} 18. f3
{[%clk 0:03:49.7]} 18... Nd2 {[%clk 0:03:30.2]} 19. Rd1 {[%clk 0:03:34]} 19...
Nc4 {[%clk 0:03:24.8]} 20. e4 {[%clk 0:03:17.2]} 20... Na5 {[%clk 0:03:22.3]}
0-1

[Event "Live Chess"]
[Site "Chess.com"]
[Date "2024.06.01"]
[Round "-"]
[White "StoreySniper"]
[Black "Crowded_House"]
[Result "1-0"]
[WhiteElo "2532"]
[BlackElo "1736"]
[TimeControl "300"]
[EndTime "12:46:21 PDT"]
[Termination "StoreySniper won by checkmate"]

1. e4 {[%clk 0:04:58]} 1... e6 {[%clk 0:04:59]} 2. Nc3 {[%clk 0:04:52.3]} 2...
d5 {[%clk 0:04:58.3]} 3. Nf3 {[%clk 0:04:51.1]} 3... dxe4 {[%clk 0:04:56.6]} 4.
Nxe4 {[%clk 0:04:50]} 4... Bd7 {[%clk 0:04:56.3]} 5. d4 {[%clk 0:04:48.8]} 5...
Bc6 {[%clk 0:04:55.5]} 6. Ng3 {[%clk 0:04:47.8]} 6... Nf6 {[%clk 0:04:52.9]} 7.
Bd3 {[%clk 0:04:46.4]} 7... Be7 {[%clk 0:04:51.6]} 8. O-O {[%clk 0:04:45.2]}
8... h6 {[%clk 0:04:50.5]} 9. c4 {[%clk 0:04:42.7]} 9... O-O {[%clk 0:04:43.5]}
10. Ne5 {[%clk 0:04:39.2]} 10... Be8 {[%clk 0:04:37.7]} 11. Be3 {[%clk
0:04:34.5]} 11... Nbd7 {[%clk 0:04:35.6]} 12. Nf3 {[%clk 0:04:24.3]} 12... Ng4
{[%clk 0:04:16.3]} 13. Bc2 {[%clk 0:04:16.1]} 13... Nxe3 {[%clk 0:04:13]} 14.
fxe3 {[%clk 0:04:14.9]} 14... Nf6 {[%clk 0:04:09.7]} 15. Qd3 {[%clk 0:04:08.1]}
15... g6 {[%clk 0:04:05.9]} 16. Ne5 {[%clk 0:04:05.1]} 16... Nd7 {[%clk
0:03:56.5]} 17. Ng4 {[%clk 0:03:52.2]} 17... Kg7 {[%clk 0:03:42.5]} 18. Rf2
{[%clk 0:02:59.3]} 18... Nf6 {[%clk 0:03:33.4]} 19. Ne5 {[%clk 0:02:55.8]} 19...
Nd7 {[%clk 0:03:26.6]} 20. Nf3 {[%clk 0:02:42.3]} 20... Nf6 {[%clk 0:03:16.4]}
21. Raf1 {[%clk 0:02:39.2]} 21... Qd6 {[%clk 0:02:48.8]} 22. Ne5 {[%clk
0:02:28.9]} 22... Qd8 {[%clk 0:02:34.2]} 23. h4 {[%clk 0:02:20.3]} 23... h5
{[%clk 0:02:28.1]} 24. Rxf6 {[%clk 0:02:12.9]} 24... Bxf6 {[%clk 0:02:26.2]} 25.
Nxh5+ {[%clk 0:02:12.1]} 25... Kh7 {[%clk 0:02:08.6]} 26. Nxf6+ {[%clk
0:02:09.7]} 26... Kh6 {[%clk 0:01:49.8]} 27. Nxe8 {[%clk 0:01:57.5]} 27... Qxe8
{[%clk 0:01:45.8]} 28. Rxf7 {[%clk 0:01:55.8]} 28... Rg8 {[%clk 0:01:39.1]} 29.
g4 {[%clk 0:01:51.2]} 29... Rd8 {[%clk 0:01:22.6]} 30. g5+ {[%clk 0:01:50.4]}
30... Kh5 {[%clk 0:01:20.1]} 31. Rh7# {[%clk 0:01:49.5]} 1-0

[Event "Live Chess"]
[Site "Chess.com"]
[Date "2024.06.01"]
[Round "-"]
[White "grillage"]
[Black "booktrunk"]
[Result "1-0"]
[WhiteElo "1856"]
[BlackElo "1370"]
[TimeControl "300"]
[EndTime "12:46:22 PDT"]
[Termination "grillage won by resignation"]

1. d4 {[%clk 0:04:57.1]} 1... b6 {[%clk 0:04:56.8]} 2. Nf3 {[%clk 0:04:55.8]}
2... Bb7 {[%clk 0:04:56.7]} 3. g3 {[%clk 0:04:53.3]} 3... e6 {[%clk 0:04:55.3]}
4. Bg2 {[%clk 0:04:52.9]} 4... h6 {[%clk 0:04:53.4]} 5. O-O {[%clk 0:04:52.5]}
5... Nf6 {[%clk 0:04:51.3]} 6. c4 {[%clk 0:04:46.9]} 6... Bd6 {[%clk 0:04:37.8]}
7. Nc3 {[%clk 0:04:45.4]} 7... O-O {[%clk 0:04:33.6]} 8. Re1 {[%clk 0:04:42.3]}
8... c5 {[%clk 0:04:30.7]} 9. d5 {[%clk 0:04:34.6]} 9... exd5 {[%clk 0:04:29]}
10. cxd5 {[%clk 0:04:33.9]} 10... Na6 {[%clk 0:04:15.9]} 11. Nb5 {[%clk
0:04:31.5]} 11... Bb8 {[%clk 0:04:08.7]} 12. e4 {[%clk 0:04:29.4]} 12... Nc7
{[%clk 0:04:06.7]} 13. a4 {[%clk 0:04:19.3]} 13... Nxb5 {[%clk 0:04:02.4]} 14.
axb5 {[%clk 0:04:17.7]} 14... Re8 {[%clk 0:03:56.6]} 15. Nd2 {[%clk 0:04:10.8]}
15... Be5 {[%clk 0:03:49.5]} 16. Nc4 {[%clk 0:04:09]} 16... Bd4 {[%clk
0:03:46.9]} 17. Be3 {[%clk 0:03:49.7]} 17... Bxe3 {[%clk 0:03:43.6]} 18. Rxe3
{[%clk 0:03:48.5]} 18... Re7 {[%clk 0:03:33.8]} 19. e5 {[%clk 0:03:29.7]} 19...
Nh7 {[%clk 0:03:23.2]} 20. d6 {[%clk 0:03:15.9]} 20... Re6 {[%clk 0:03:07.2]}
21. Bxb7 {[%clk 0:03:13.4]} 21... Rb8 {[%clk 0:03:07.1]} 22. Bg2 {[%clk
0:03:09.4]} 22... Rb7 {[%clk 0:03:07]} 23. f4 {[%clk 0:03:00.7]} 23... Rb8
{[%clk 0:03:06.9]} 24. Ra6 {[%clk 0:02:57]} 24... Ng5 {[%clk 0:03:06.8]} 25.
fxg5 {[%clk 0:02:54.3]} 1-0

[Event "Live Chess"]
[Site "Chess.com"]
[Date "2024.06.01"]
[Round "-"]
[White "NottheBishopSacrifice"]
[Black "nitrofish07"]
[Result "1-0"]
[WhiteElo "2263"]
[BlackElo "2102"]
[TimeControl "300"]
[EndTime "12:46:33 PDT"]
[Termination "NottheBishopSacrifice won by resignation"]

1. d4 {[%clk 0:04:57.5]} 1... d5 {[%clk 0:04:56.1]} 2. Nf3 {[%clk 0:04:56.9]}
2... Nf6 {[%clk 0:04:55.2]} 3. Bf4 {[%clk 0:04:54.7]} 3... Bf5 {[%clk
0:04:54.2]} 4. e3 {[%clk 0:04:53.8]} 4... e6 {[%clk 0:04:52.2]} 5. Bd3 {[%clk
0:04:52.2]} 5... Bxd3 {[%clk 0:04:50.9]} 6. Qxd3 {[%clk 0:04:52.1]} 6... Bd6
{[%clk 0:04:49.9]} 7. Bg3 {[%clk 0:04:50.8]} 7... c6 {[%clk 0:04:48.5]} 8. O-O
{[%clk 0:04:48.6]} 8... Bxg3 {[%clk 0:04:46.2]} 9. hxg3 {[%clk 0:04:46.9]} 9...
O-O {[%clk 0:04:44.8]} 10. c4 {[%clk 0:04:45.8]} 10... Nbd7 {[%clk 0:04:43.6]}
11. Nc3 {[%clk 0:04:45.2]} 11... a5 {[%clk 0:04:39.9]} 12. e4 {[%clk 0:04:43.4]}
12... dxe4 {[%clk 0:04:38.7]} 13. Nxe4 {[%clk 0:04:43]} 13... Nxe4 {[%clk
0:04:38.6]} 14. Qxe4 {[%clk 0:04:42.1]} 14... Nf6 {[%clk 0:04:38.5]} 15. Qf4
{[%clk 0:04:40.7]} 15... Qb8 {[%clk 0:04:37]} 16. Qe3 {[%clk 0:04:38.7]} 16...
Qd6 {[%clk 0:04:35.3]} 17. Rad1 {[%clk 0:04:36.3]} 17... Rfd8 {[%clk 0:04:34.2]}
18. Rfe1 {[%clk 0:04:34.2]} 18... a4 {[%clk 0:04:32]} 19. b3 {[%clk 0:04:32.6]}
19... axb3 {[%clk 0:04:29.7]} 20. axb3 {[%clk 0:04:32.5]} 20... Ra3 {[%clk
0:04:28.9]} 21. Rd3 {[%clk 0:04:29.8]} 21... h6 {[%clk 0:04:26.7]} 22. Red1
{[%clk 0:04:28.4]} 22... Rda8 {[%clk 0:04:23.9]} 23. Ne5 {[%clk 0:04:19.8]}
23... Ra1 {[%clk 0:04:19.5]} 24. g4 {[%clk 0:04:06.6]} 24... Nd7 {[%clk
0:04:05.3]} 25. Nxd7 {[%clk 0:03:53.4]} 25... Qxd7 {[%clk 0:03:46.4]} 26. g5
{[%clk 0:03:51.1]} 26... hxg5 {[%clk 0:03:44]} 27. Qxg5 {[%clk 0:03:49.9]} 27...
Rxd1+ {[%clk 0:03:35.8]} 28. Rxd1 {[%clk 0:03:48.5]} 28... Qd8 {[%clk
0:03:35.5]} 29. Qe5 {[%clk 0:03:46.1]} 29... Qf6 {[%clk 0:03:33.5]} 30. Qe3
{[%clk 0:03:41.5]} 30... Rd8 {[%clk 0:03:31.8]} 31. g3 {[%clk 0:03:34]} 31... c5
{[%clk 0:03:28.4]} 32. d5 {[%clk 0:03:31.3]} 32... exd5 {[%clk 0:03:21]} 33.
cxd5 {[%clk 0:03:30.3]} 33... b6 {[%clk 0:03:19.4]} 34. Kg2 {[%clk 0:03:23.1]}
34... g6 {[%clk 0:03:17.8]} 35. Qe4 {[%clk 0:03:11.9]} 35... Kg7 {[%clk
0:02:51.8]} 36. Rd3 {[%clk 0:03:08.7]} 36... Qd6 {[%clk 0:02:48.6]} 37. f4
{[%clk 0:03:03.6]} 37... Rd7 {[%clk 0:02:46.6]} 38. Qe5+ {[%clk 0:03:02.5]}
38... f6 {[%clk 0:02:42.4]} 39. Qxd6 {[%clk 0:02:50.9]} 39... Rxd6 {[%clk
0:02:42.3]} 40. Kf3 {[%clk 0:02:49.6]} 40... b5 {[%clk 0:02:39.3]} 41. Ke4
{[%clk 0:02:48]} 41... Rd8 {[%clk 0:02:23.2]} 42. Rc3 {[%clk 0:02:44.7]} 42...
Re8+ {[%clk 0:02:15]} 43. Kd3 {[%clk 0:02:42.3]} 43... Rc8 {[%clk 0:02:13.9]}
44. Rc1 {[%clk 0:02:36.5]} 44... Kf7 {[%clk 0:02:11.4]} 45. Ra1 {[%clk
0:02:33.6]} 45... Rc7 {[%clk 0:01:45.8]} 46. Ra5 {[%clk 0:02:31.5]} 46... Rb7
{[%clk 0:01:35.5]} 47. Ra6 {[%clk 0:02:28.2]} 47... Ke7 {[%clk 0:01:30.9]} 48.
Rc6 {[%clk 0:02:26.6]} 48... c4+ {[%clk 0:01:25.5]} 49. bxc4 {[%clk 0:02:25.9]}
49... bxc4+ {[%clk 0:01:25.4]} 50. Kxc4 {[%clk 0:02:23.5]} 50... Rb1 {[%clk
0:01:21.3]} 51. Re6+ {[%clk 0:02:21]} 51... Kf7 {[%clk 0:01:18.7]} 52. Ra6
{[%clk 0:02:20.5]} 52... Rg1 {[%clk 0:01:16.4]} 53. Ra3 {[%clk 0:02:14.5]} 53...
Ke7 {[%clk 0:01:13.3]} 54. Re3+ {[%clk 0:02:08.8]} 54... Kd7 {[%clk 0:01:05.6]}
55. Re6 {[%clk 0:02:06.8]} 55... Rxg3 {[%clk 0:01:02.2]} 56. Rxf6 {[%clk
0:02:03.8]} 56... Rg4 {[%clk 0:00:57.7]} 57. Kc5 {[%clk 0:02:01.5]} 57... Rg1
{[%clk 0:00:53.6]} 58. Rf7+ {[%clk 0:01:59.7]} 58... Ke8 {[%clk 0:00:51.1]} 59.
Rg7 {[%clk 0:01:58.5]} 59... Rf1 {[%clk 0:00:48.7]} 60. Rxg6 {[%clk 0:01:45.9]}
60... Rxf4 {[%clk 0:00:47.5]} 61. Kd6 {[%clk 0:01:45.5]} 61... Ra4 {[%clk
0:00:18.5]} 62. Rg8+ {[%clk 0:01:43.1]} 62... Kf7 {[%clk 0:00:17.5]} 63. Rb8
{[%clk 0:01:41.4]} 63... Ra7 {[%clk 0:00:13.2]} 64. Kc6 {[%clk 0:01:38.8]} 64...
Ke7 {[%clk 0:00:10.2]} 65. d6+ {[%clk 0:01:37.9]} 65... Ke6 {[%clk 0:00:08.7]}
66. Re8+ {[%clk 0:01:36.8]} 66... Kf7 {[%clk 0:00:07.3]} 67. Re1 {[%clk
0:01:35.1]} 67... Ra1 {[%clk 0:00:05.7]} 68. Rxa1 {[%clk 0:01:32.7]} 1-0

[Event "Live Chess"]
[Site "Chess.com"]
[Date "2024.06.01"]
[Round "-"]
[White "MagnersCarlsberg2870"]
[Black "blunderabit"]
[Result "0-1"]
[WhiteElo "1826"]
[BlackElo "1829"]
[TimeControl "300"]
[EndTime "12:46:52 PDT"]
[Termination "blunderabit won by resignation"]

1. Nf3 {[%clk 0:04:56.8]} 1... Nf6 {[%clk 0:04:56.7]} 2. d4 {[%clk 0:04:54.9]}
2... d5 {[%clk 0:04:55.4]} 3. e3 {[%clk 0:04:53.3]} 3... e6 {[%clk 0:04:52.3]}
4. Bd3 {[%clk 0:04:52.3]} 4... Bd6 {[%clk 0:04:47.8]} 5. Nbd2 {[%clk 0:04:50.9]}
5... c5 {[%clk 0:04:44.7]} 6. c3 {[%clk 0:04:49.9]} 6... Nc6 {[%clk 0:04:42.1]}
7. Qe2 {[%clk 0:04:48.9]} 7... Qc7 {[%clk 0:04:38.3]} 8. O-O {[%clk 0:04:47.7]}
8... O-O {[%clk 0:04:31.1]} 9. e4 {[%clk 0:04:46.6]} 9... dxe4 {[%clk
0:04:25.6]} 10. Nxe4 {[%clk 0:04:44]} 10... cxd4 {[%clk 0:04:20.3]} 11. Nxf6+
{[%clk 0:04:37.7]} 11... gxf6 {[%clk 0:04:18.8]} 12. Qe4 {[%clk 0:04:36.3]}
12... f5 {[%clk 0:04:15.7]} 13. Qh4 {[%clk 0:04:32.6]} 13... f6 {[%clk
0:03:59.6]} 14. Bh6 {[%clk 0:04:26.7]} 14... Rf7 {[%clk 0:03:53.3]} 15. Nxd4
{[%clk 0:04:21.6]} 15... Nxd4 {[%clk 0:03:50.3]} 16. cxd4 {[%clk 0:04:20.2]}
16... Bf8 {[%clk 0:03:39.2]} 17. Rac1 {[%clk 0:04:17.2]} 17... Qe7 {[%clk
0:03:31.5]} 18. Bxf8 {[%clk 0:04:12.5]} 18... Qxf8 {[%clk 0:03:29.7]} 19. Rc3
{[%clk 0:04:02.7]} 19... Bd7 {[%clk 0:03:27.8]} 20. Rfc1 {[%clk 0:04:01.4]}
20... Bc6 {[%clk 0:03:20.9]} 21. b4 {[%clk 0:03:57.5]} 21... Rg7 {[%clk
0:03:15.9]} 22. b5 {[%clk 0:03:55]} 22... Bxg2 {[%clk 0:03:12.8]} 23. Bf1 {[%clk
0:03:40.1]} 23... Bf3+ {[%clk 0:02:58]} 24. Bg2 {[%clk 0:03:32.1]} 24... Bxg2
{[%clk 0:02:44.1]} 25. Rc7 {[%clk 0:03:30.7]} 25... Bc6+ {[%clk 0:02:36.4]} 26.
Kf1 {[%clk 0:03:26.1]} 26... Bxb5+ {[%clk 0:02:31]} 27. Ke1 {[%clk 0:03:23.7]}
27... Qb4+ {[%clk 0:02:16.7]} 28. Kd1 {[%clk 0:03:16.6]} 28... Qa4+ {[%clk
0:01:53.1]} 29. Kd2 {[%clk 0:03:10]} 29... Rxc7 {[%clk 0:01:40.5]} 30. Rxc7
{[%clk 0:03:06.6]} 30... Qa5+ {[%clk 0:01:39]} 31. Rc3 {[%clk 0:03:05.5]} 31...
Qxa2+ {[%clk 0:01:31.3]} 32. Ke3 {[%clk 0:03:02.8]} 32... Qe2+ {[%clk
0:01:28.7]} 33. Kf4 {[%clk 0:03:02.1]} 33... Qd2+ {[%clk 0:01:18.3]} 34. Re3
{[%clk 0:02:56.1]} 34... Qxd4+ {[%clk 0:01:16.2]} 0-1

[Event "Live Chess"]
[Site "Chess.com"]
[Date "2024.06.01"]
[Round "-"]
[White "WelshTiger"]
[Black "imchessive"]
[Result "1-0"]
[WhiteElo "2543"]
[BlackElo "1588"]
[TimeControl "300"]
[EndTime "12:47:16 PDT"]
[Termination "WelshTiger won by checkmate"]

1. e4 {[%clk 0:04:57.3]} 1... c5 {[%clk 0:04:59]} 2. Nf3 {[%clk 0:04:55.9]} 2...
e6 {[%clk 0:04:58.2]} 3. c3 {[%clk 0:04:54.9]} 3... d5 {[%clk 0:04:56.6]} 4.
exd5 {[%clk 0:04:54.4]} 4... exd5 {[%clk 0:04:55.5]} 5. d4 {[%clk 0:04:52.8]}
5... Nf6 {[%clk 0:04:53.6]} 6. Bb5+ {[%clk 0:04:51.7]} 6... Nc6 {[%clk
0:04:52.7]} 7. O-O {[%clk 0:04:50.3]} 7... Be7 {[%clk 0:04:49.7]} 8. dxc5 {[%clk
0:04:49.3]} 8... O-O {[%clk 0:04:34.4]} 9. Be3 {[%clk 0:04:45.2]} 9... a6 {[%clk
0:04:26.7]} 10. Bxc6 {[%clk 0:04:43.1]} 10... bxc6 {[%clk 0:04:26.6]} 11. b4
{[%clk 0:04:39.6]} 11... a5 {[%clk 0:04:22.5]} 12. a3 {[%clk 0:04:37.6]} 12...
Ba6 {[%clk 0:04:16.4]} 13. Re1 {[%clk 0:04:36.7]} 13... Ne4 {[%clk 0:04:11.5]}
14. Bd4 {[%clk 0:04:33.6]} 14... Bf6 {[%clk 0:04:00.6]} 15. Nbd2 {[%clk
0:04:30.6]} 15... Bxd4 {[%clk 0:03:58.2]} 16. cxd4 {[%clk 0:04:28.7]} 16... Re8
{[%clk 0:03:46.5]} 17. Nxe4 {[%clk 0:04:25.7]} 17... dxe4 {[%clk 0:03:43.5]} 18.
Ne5 {[%clk 0:04:23.5]} 18... Qd5 {[%clk 0:03:32.3]} 19. Qg4 {[%clk 0:03:22.1]}
19... f6 {[%clk 0:03:13.5]} 20. Nd7 {[%clk 0:03:17.7]} 20... Kh8 {[%clk
0:02:25.6]} 21. Nb6 {[%clk 0:03:15.7]} 21... Qxd4 {[%clk 0:02:22]} 22. Nxa8
{[%clk 0:03:14.5]} 22... Rxa8 {[%clk 0:02:20.7]} 23. Qxe4 {[%clk 0:03:12.4]}
23... Qb2 {[%clk 0:02:07.7]} 24. Qe8+ {[%clk 0:03:08.3]} 24... Rxe8 {[%clk
0:02:04.1]} 25. Rxe8# {[%clk 0:03:07.2]} 1-0

[Event "Live Chess"]
[Site "Chess.com"]
[Date "2024.06.01"]
[Round "-"]
[White "MaksymYurii"]
[Black "Queensandpawns"]
[Result "0-1"]
[WhiteElo "933"]
[BlackElo "2382"]
[TimeControl "300"]
[EndTime "12:47:22 PDT"]
[Termination "Queensandpawns won by checkmate"]

1. e4 {[%clk 0:04:52.9]} 1... e5 {[%clk 0:04:59.9]} 2. Nf3 {[%clk 0:04:51.4]}
2... Nf6 {[%clk 0:04:59.8]} 3. d4 {[%clk 0:04:37.7]} 3... Nc6 {[%clk 0:04:59.7]}
4. dxe5 {[%clk 0:04:33.9]} 4... Nxe4 {[%clk 0:04:58.4]} 5. Bd3 {[%clk
0:04:27.3]} 5... Nc5 {[%clk 0:04:56.6]} 6. O-O {[%clk 0:04:19.9]} 6... Be7
{[%clk 0:04:53.4]} 7. Nc3 {[%clk 0:04:11.8]} 7... O-O {[%clk 0:04:51.8]} 8. Nd5
{[%clk 0:04:06.2]} 8... Ne6 {[%clk 0:04:49.1]} 9. Nxe7+ {[%clk 0:04:03.3]} 9...
Qxe7 {[%clk 0:04:49]} 10. Bb5 {[%clk 0:03:57.6]} 10... a6 {[%clk 0:04:47.2]} 11.
Bxc6 {[%clk 0:03:56.1]} 11... dxc6 {[%clk 0:04:47.1]} 12. Bd2 {[%clk 0:03:47.8]}
12... c5 {[%clk 0:04:44.4]} 13. Re1 {[%clk 0:03:42.7]} 13... Bd7 {[%clk
0:04:42.4]} 14. Re4 {[%clk 0:03:40.8]} 14... Bc6 {[%clk 0:04:41]} 15. Rg4 {[%clk
0:03:37.4]} 15... Rad8 {[%clk 0:04:40.9]} 16. Qe2 {[%clk 0:03:32.1]} 16... Bxf3
{[%clk 0:04:37.5]} 17. Qxf3 {[%clk 0:03:29.9]} 17... Rxd2 {[%clk 0:04:36.1]} 18.
h3 {[%clk 0:03:20.1]} 18... Rfd8 {[%clk 0:04:32.8]} 19. Re1 {[%clk 0:03:13.8]}
19... R2d4 {[%clk 0:04:26.1]} 20. Rg3 {[%clk 0:03:09.8]} 20... Rf4 {[%clk
0:04:23.2]} 21. Qh5 {[%clk 0:03:00.5]} 21... Qh4 {[%clk 0:04:18.1]} 22. Qxh4
{[%clk 0:02:45.2]} 22... Rxh4 {[%clk 0:04:18]} 23. f3 {[%clk 0:02:34.5]} 23...
Rhd4 {[%clk 0:04:12.6]} 24. h4 {[%clk 0:02:30.7]} 24... Rxh4 {[%clk 0:04:10.9]}
25. Kf2 {[%clk 0:02:25.4]} 25... Rhd4 {[%clk 0:04:10]} 26. Rh1 {[%clk
0:02:23.4]} 26... Rd2+ {[%clk 0:04:08.8]} 27. Ke3 {[%clk 0:02:20.9]} 27... Rxc2
{[%clk 0:04:08.7]} 28. Rgh3 {[%clk 0:02:19.5]} 28... h6 {[%clk 0:04:08.4]} 29.
g4 {[%clk 0:02:16.9]} 29... Rdd2 {[%clk 0:04:07.6]} 30. Ke4 {[%clk 0:02:11.8]}
30... Rd4+ {[%clk 0:04:04]} 31. Kf5 {[%clk 0:02:09.9]} 31... Rf4# {[%clk
0:04:03.1]} 0-1

[Event "Live Chess"]
[Site "Chess.com"]
[Date "2024.06.01"]
[Round "-"]
[White "simonJacobsLondon"]
[Black "Enhard"]
[Result "1-0"]
[WhiteElo "1578"]
[BlackElo "1427"]
[TimeControl "300"]
[EndTime "12:47:25 PDT"]
[Termination "simonJacobsLondon won by resignation"]

1. e4 {[%clk 0:04:57.4]} 1... c6 {[%clk 0:04:58.6]} 2. d4 {[%clk 0:04:53]} 2...
d5 {[%clk 0:04:58]} 3. exd5 {[%clk 0:04:52.3]} 3... cxd5 {[%clk 0:04:57.1]} 4.
Bd3 {[%clk 0:04:51.3]} 4... Nf6 {[%clk 0:04:56.6]} 5. c3 {[%clk 0:04:49.2]} 5...
Bg4 {[%clk 0:04:54.6]} 6. Qb3 {[%clk 0:04:35.9]} 6... b6 {[%clk 0:04:47]} 7.
Qa4+ {[%clk 0:04:29.6]} 7... Nbd7 {[%clk 0:04:45.6]} 8. Bb5 {[%clk 0:04:28.3]}
8... h6 {[%clk 0:04:43]} 9. f3 {[%clk 0:04:25.3]} 9... Be6 {[%clk 0:04:39.9]}
10. Ne2 {[%clk 0:04:18.6]} 10... g6 {[%clk 0:04:38.6]} 11. Nd2 {[%clk
0:04:10.9]} 11... Bg7 {[%clk 0:04:37.2]} 12. Nf4 {[%clk 0:04:07.8]} 12... Bf5
{[%clk 0:04:34.5]} 13. g4 {[%clk 0:04:02.2]} 13... g5 {[%clk 0:04:28.9]} 14.
gxf5 {[%clk 0:03:51.2]} 14... gxf4 {[%clk 0:04:27.6]} 15. Rg1 {[%clk 0:03:49.1]}
15... O-O {[%clk 0:04:19.6]} 16. Nf1 {[%clk 0:03:42.8]} 16... e6 {[%clk
0:03:48.4]} 17. Bxf4 {[%clk 0:03:40.9]} 17... Nh5 {[%clk 0:03:41]} 18. Bxh6
{[%clk 0:03:38.4]} 18... Kh7 {[%clk 0:03:36.4]} 19. Bxg7 {[%clk 0:03:33.1]}
19... Nxg7 {[%clk 0:03:34.2]} 20. Bxd7 {[%clk 0:03:32.2]} 20... Qh4+ {[%clk
0:03:31.3]} 21. Ng3 {[%clk 0:03:27.6]} 21... Nxf5 {[%clk 0:03:26.9]} 22. O-O-O
{[%clk 0:03:23.8]} 22... Qf4+ {[%clk 0:03:18.5]} 23. Kb1 {[%clk 0:03:18.6]}
23... Qxf3 {[%clk 0:03:07.5]} 24. Nxf5 {[%clk 0:03:16.2]} 24... Qxf5+ {[%clk
0:03:04.2]} 25. Ka1 {[%clk 0:03:12.3]} 25... Rg8 {[%clk 0:03:03]} 26. Bb5 {[%clk
0:02:44.3]} 26... Kh8 {[%clk 0:02:59.4]} 27. Bd3 {[%clk 0:02:40.9]} 27... Qf6
{[%clk 0:02:52]} 28. Qc2 {[%clk 0:02:37.1]} 28... Rxg1 {[%clk 0:02:49.6]} 29.
Rxg1 {[%clk 0:02:34.6]} 29... Rg8 {[%clk 0:02:47.8]} 30. Rxg8+ {[%clk
0:02:28.7]} 30... Kxg8 {[%clk 0:02:46.7]} 31. Qg2+ {[%clk 0:02:21.7]} 31... Kf8
{[%clk 0:02:45.7]} 32. Qg3 {[%clk 0:02:09.4]} 32... Qh6 {[%clk 0:02:34.6]} 33.
h4 {[%clk 0:01:59]} 33... Qc1+ {[%clk 0:02:32.9]} 34. Bb1 {[%clk 0:01:57.9]}
34... Qh6 {[%clk 0:02:31.7]} 35. Qg5 {[%clk 0:01:55.8]} 35... Qh8 {[%clk
0:02:28.7]} 36. h5 {[%clk 0:01:54.5]} 36... f6 {[%clk 0:02:27.4]} 37. Qg6 {[%clk
0:01:52.3]} 37... Ke7 {[%clk 0:02:22.4]} 38. h6 {[%clk 0:01:46.5]} 1-0

[Event "Live Chess"]
[Site "Chess.com"]
[Date "2024.06.01"]
[Round "-"]
[White "Richardallis"]
[Black "Stanbad1"]
[Result "0-1"]
[WhiteElo "2010"]
[BlackElo "2664"]
[TimeControl "300"]
[EndTime "12:47:42 PDT"]
[Termination "Stanbad1 won on time"]

1. d4 {[%clk 0:04:49]} 1... Nf6 {[%clk 0:04:58.5]} 2. Nf3 {[%clk 0:04:47.4]}
2... g6 {[%clk 0:04:57.2]} 3. Bg5 {[%clk 0:04:46.6]} 3... Bg7 {[%clk 0:04:56.5]}
4. Nbd2 {[%clk 0:04:46]} 4... d6 {[%clk 0:04:55.3]} 5. e4 {[%clk 0:04:44.6]}
5... O-O {[%clk 0:04:53.3]} 6. Bc4 {[%clk 0:04:43.3]} 6... Nbd7 {[%clk
0:04:52.1]} 7. Bb3 {[%clk 0:04:41.7]} 7... e5 {[%clk 0:04:50.7]} 8. dxe5 {[%clk
0:04:40.6]} 8... dxe5 {[%clk 0:04:49.4]} 9. O-O {[%clk 0:04:37.6]} 9... c6
{[%clk 0:04:47.5]} 10. c3 {[%clk 0:04:36.1]} 10... Qc7 {[%clk 0:04:46.5]} 11.
Qe2 {[%clk 0:04:34.2]} 11... Nc5 {[%clk 0:04:45.1]} 12. Bc2 {[%clk 0:04:31.3]}
12... Ne6 {[%clk 0:04:43]} 13. Bh4 {[%clk 0:04:29.4]} 13... Nf4 {[%clk
0:04:41.5]} 14. Qe3 {[%clk 0:04:28.2]} 14... Ng4 {[%clk 0:04:40.3]} 15. Qc5
{[%clk 0:04:25.7]} 15... b6 {[%clk 0:04:38.6]} 16. Qa3 {[%clk 0:04:24]} 16... a5
{[%clk 0:04:36.2]} 17. Rfe1 {[%clk 0:04:18.3]} 17... Ba6 {[%clk 0:04:34.2]} 18.
Bg3 {[%clk 0:04:09.7]} 18... Ne2+ {[%clk 0:04:31.7]} 19. Kh1 {[%clk 0:04:08.5]}
19... Nxg3+ {[%clk 0:04:30]} 20. fxg3 {[%clk 0:04:07.9]} 20... Rfd8 {[%clk
0:04:25.9]} 21. Nf1 {[%clk 0:04:02.5]} 21... Bf8 {[%clk 0:04:23.8]} 22. Qb3
{[%clk 0:04:00.2]} 22... Nf2+ {[%clk 0:04:22.3]} 23. Kg1 {[%clk 0:03:58.7]}
23... Bc5 {[%clk 0:04:22]} 24. Ne3 {[%clk 0:03:56.1]} 24... Ng4 {[%clk 0:04:18]}
0-1

[Event "Live Chess"]
[Site "Chess.com"]
[Date "2024.06.01"]
[Round "-"]
[White "gmnorfolk"]
[Black "ACM42"]
[Result "0-1"]
[WhiteElo "2062"]
[BlackElo "2212"]
[TimeControl "300"]
[EndTime "12:47:43 PDT"]
[Termination "ACM42 won by resignation"]

1. d4 {[%clk 0:04:53]} 1... Nf6 {[%clk 0:04:58.6]} 2. c4 {[%clk 0:04:47.3]} 2...
g6 {[%clk 0:04:58.1]} 3. Nc3 {[%clk 0:04:46]} 3... Bg7 {[%clk 0:04:57.6]} 4. Nf3
{[%clk 0:04:42.1]} 4... O-O {[%clk 0:04:57.1]} 5. g3 {[%clk 0:04:39.2]} 5... d6
{[%clk 0:04:56.6]} 6. Bg2 {[%clk 0:04:38.6]} 6... c5 {[%clk 0:04:56.1]} 7. O-O
{[%clk 0:04:34.5]} 7... Nc6 {[%clk 0:04:55.2]} 8. dxc5 {[%clk 0:04:32]} 8...
dxc5 {[%clk 0:04:53.8]} 9. Qxd8 {[%clk 0:04:31.5]} 9... Rxd8 {[%clk 0:04:52.7]}
10. Be3 {[%clk 0:04:31.4]} 10... Be6 {[%clk 0:04:47.1]} 11. Bxc5 {[%clk
0:04:26.2]} 11... Bxc4 {[%clk 0:04:40.1]} 12. Rfd1 {[%clk 0:04:21.1]} 12... Nd5
{[%clk 0:04:31.4]} 13. Nxd5 {[%clk 0:04:09.1]} 13... Bxd5 {[%clk 0:04:24.4]} 14.
Nd4 {[%clk 0:04:01.4]} 14... Bxg2 {[%clk 0:04:19.2]} 15. Kxg2 {[%clk 0:03:54.7]}
15... Bxd4 {[%clk 0:04:15]} 0-1